Workbook

Sheet SixLink
G1: =+PI()/180 -> 0.01745329252 | I1: 2 | L1: A0 | M1: 0 | N1: 0
A2: Crank | B2: 50 | C2: A0A Link2 | L2: A | M2: =+Crank*COS(A26*D_R) -> -43.30127019 | N2: =+Crank*SIN(A26*D_R) -> -25
A3: Coupler | B3: 217 | C3: AB Link3 | L3: B0 | M3: =+Fixed -> -108 | N3: 0
A4: Rocker | B4: 217 | C4: B0B Link4 | L4: B | M4: =+M3+Rocker*COS(K26*PI()/180) -> 1.558210315 | N4: =+N3+Rocker*SIN(PI()*K26/180) -> 187.3125691
A5: Fixed | B5: -108 | C5: B0A0 Link1 | M5: =+M2 -> -43.30127019 | N5: =+N2 -> -25
A7: BP | B7: 217
L8: P | M8: =+M3+Rocker*COS(K26*PI()/180) -> 1.558210315 | N8: =+N3+Rocker*SIN(PI()*K26/180) -> 187.3125691
M9: =M4+B7*COS((J26+80)*PI()/180) -> -199.7390868 | N9: =N4+B7*SIN((J26+80)*PI()/180) -> 268.358224
L11: C2 | M11: 0 | N11: 0
M12: =+Crank*COS((A26-100)*D_R) -> -17.10100717 | N12: =+Crank*SIN((A26-100)*D_R) -> 46.98463104
L14: B1 | M14: =+Crank*COS((A26-100)*D_R) -> -17.10100717 | N14: =+Crank*SIN((A26-100)*D_R) -> 46.98463104
M15: =M14+B7*COS((K26+80)*PI()/180) -> -182.5432939 | N15: =N14+B7*SIN((K26+80)*PI()/180) -> 187.4048922
L17: P" | M17: =M14+B7*COS((K26+80)*PI()/180) -> -182.5432939 | N17: =N14+B7*SIN((K26+80)*PI()/180) -> 187.4048922
M18: =+M17+B7*COS(K26*PI()/180) -> -72.98508359 | N18: =N17+B7*SIN(K26*PI()/180) -> 374.7174614
L20: Joint link | M20: =+$M$17+$B$7*COS($K$26*PI()/180) -> -72.98508359 | N20: =$N$17+$B$7*SIN($K$26*PI()/180) -> 374.7174614
M21: =$M$4+$B$7*COS(($J$26+80)*PI()/180) -> -199.7390868 | N21: =$N$4+$B$7*SIN(($J$26+80)*PI()/180) -> 268.358224
L24: Joint Link Length | N24: =SQRT((M20-M21)^2+(N20-N21)^2) -> 165.4655997
A25: q12 | B25: Sx | C25: Sy | D25: S | E25: f | F25: y | G25: m | H25: q14 | I25: q13 | J25: q14(deg) | K25: q13(deg) | M25: P | P25: P"
A26: 570 | B26: =Crank*COS(A26*D_R)-Fixed -> 64.69872981 | C26: =Crank*SIN(A26*D_R) -> -25 | D26: =+SQRT(B26^2+C26^2) -> 69.36083649 | E26: =ATAN2(B26,C26) -> -0.3687330673 | F26: =ACOS((Link4^2+D26^2-Coupler^2)/(2*D26*Link4)) -> 1.410290456 | G26: =ACOS((Coupler^2+Link4^2-D26^2)/(2*Coupler*Link4)) -> 0.3210117415 | H26: =+E26-F26 -> -1.779023523 | I26: =+H26-G26 -> -2.100035265 | J26: =H26/D_R+180 -> 78.06946046 | K26: =I26/D_R+180 -> 59.6768425 | M26: -115.0025963 | N26: 265.7641454 | P26: -241.7565995 | Q26: 159.404908
A27: 10 | B27: 157.2403877 | C27: 8.682408883 | D27: =+SQRT(B27^2+C27^2) -> 157.4799153 | E27: =ATAN2(B27,C27) -> 0.05516140607 | F27: 1.199464352 | G27: 0.7426639505 | H27: =+E27-F27 -> -1.144302945 | I27: =+H27-G27 -> -1.886966896 | J27: 114.4362707 | K27: 71.88476078 | M27: -119.4331366 | N27: 262.1029164 | P27: -246.1871397 | Q27: 155.7436791
A28: 20 | B28: 154.984631 | C28: 17.10100717 | D28: 155.9252395 | E28: 0.1098954685 | F28: 1.203305693 | G28: 0.734981268 | H28: -1.093410224 | I28: -1.828391492 | J28: 117.3522089 | K28: 75.2408842 | M28: -123.9226947 | N28: 258.5044632 | P28: -250.6766979 | Q28: 152.1452259
A29: 30 | B29: 151.3012702 | C29: 25 | D29: 153.3527775 | E29: 0.1637536745 | F29: 1.209649392 | G29: 0.7222938687 | H29: -1.045895718 | I29: -1.768189587 | J29: 120.0745896 | K29: 78.69019931 | M29: -128.4738724 | N29: 254.9649168 | P29: -255.2278755 | Q29: 148.6056795
A30: 40 | B30: 146.3022222 | C30: 32.13938048 | D30: 149.7907874 | E30: 0.2162431556 | F30: 1.218408312 | G30: 0.7047760286 | H30: -1.002165157 | I30: -1.706941186 | J30: 122.5801661 | K30: 82.19947419 | M30: -133.088194 | N30: 251.4803038 | P30: -259.8421972 | Q30: 145.1210664
A31: 50 | B31: 140.1393805 | C31: 38.30222216 | D31: 145.2794073 | E31: 0.2667991877 | F31: 1.229461533 | G31: 0.6826695883 | H31: -0.9626623449 | I31: -1.645331933 | J31: 124.8435105 | K31: 85.72942433 | M31: -137.7659029 | N31: 248.0468913 | P31: -264.5199061 | Q31: 141.687654
A32: 60 | B32: 133 | C32: 43.30127019 | D32: 139.8713695 | E32: 0.3147504866 | F32: 1.242654815 | G32: 0.6562830241 | H32: -0.9279043281 | I32: -1.584187352 | J32: 126.8349982 | K32: 89.23275076 | M32: -142.5057909 | N32: 244.6615726 | P32: -269.2597941 | Q32: 138.3023353
A33: 70 | B33: 125.1010072 | C33: 46.98463104 | D33: 133.6331454 | E33: 0.3592734255 | F33: 1.257800307 | G33: 0.6259920395 | H33: -0.8985268815 | I33: -1.524518921 | J33: 128.5182019 | K33: 92.65150003 | M33: -147.3050604 | N33: 241.322293 | P33: -274.0590636 | Q33: 134.9630556
A34: 80 | B34: 116.6824089 | C34: 49.24038765 | D34: 126.6467541 | E34: 0.3993298695 | F34: 1.274674747 | G34: 0.5922431605 | H34: -0.8753448771 | I34: -1.467588038 | J34: 129.8464329 | K34: 95.91339938 | M34: -152.1592172 | N34: 238.0285182 | P34: -278.9132204 | Q34: 131.6692809
A35: 90 | B35: 108 | C35: 50 | D35: 119.0126044 | E35: 0.433581484 | F35: 1.293015116 | G35: 0.5555624218 | H35: -0.8594336319 | I35: -1.414996054 | J35: 130.7580801 | K35: 98.92669809 | M35: -157.0619908 | N35: 234.7817468 | P35: -283.815994 | Q35: 128.4225095
A36: 100 | B36: 99.31759112 | C36: 49.24038765 | D36: 110.8539565 | E36: 0.4602716707 | F36: 1.312510244 | G36: 0.5165721662 | H36: -0.852238573 | I36: -1.368810739 | J36: 131.1703266 | K36: 101.5729217 | M36: -162.0052766 | N36: 231.5860699 | P36: -288.7592798 | Q36: 125.2268326
A37: 110 | B37: 90.89899283 | C37: 46.98463104 | D37: 102.3239095 | E37: 0.477066832 | F37: 1.332786139 | G37: 0.476020375 | H37: -0.8557193073 | I37: -1.331739682 | J37: 130.9708952 | K37: 103.6969368 | M37: -166.9790943 | N37: 228.4487836 | P37: -293.7330975 | Q37: 122.0895463
A38: 120 | B38: 83 | C38: 43.30127019 | D38: 93.61623791 | E38: 0.4808581337 | F38: 1.353381925 | G38: 0.4348288027 | H38: -0.8725237918 | I38: -1.307352594 | J38: 130.0080692 | K38: 105.094214 | M38: -171.9715534 | N38: 225.3810603 | P38: -298.7255566 | Q38: 119.0218229
A39: 130 | B39: 75.86061952 | C39: 38.30222216 | D39: 84.98172636 | E39: 0.467561973 | F39: 1.373712517 | G39: 0.3941676193 | H39: -0.9061505441 | I39: -1.300318163 | J39: 128.0813982 | K39: 105.4972572 | M39: -176.9688128 | N39: 222.3986876 | P39: -303.722816 | Q39: 116.0394502
A40: 140 | B40: 69.69777784 | C40: 32.13938048 | D40: 76.75102615 | E40: 0.4320667816 | F40: 1.393015635 | G40: 0.3555613844 | H40: -0.9609488529 | I40: -1.316510237 | J40: 124.9416864 | K40: 104.5695197 | M40: -181.9550196 | N40: 219.5228864 | P40: -308.7090228 | Q40: 113.1636491
A41: 150 | B41: 64.69872981 | C41: 25 | D41: 69.36083649 | E41: 0.3687330673 | F41: 1.410290456 | G41: 0.3210117415 | H41: -1.041557389 | I41: -1.36256913 | J41: 120.3231575 | K41: 101.9305395 | M41: -186.912204 | N41: 216.7812198 | P41: -313.6662071 | Q41: 110.4219825
A42: 160 | B42: 61.01536896 | C42: 17.10100717 | D42: 63.36655029 | E42: 0.273262547 | F42: 1.424266658 | G42: 0.2930593373 | H42: -1.151004111 | I42: -1.444063448 | J42: 114.0523222 | K42: 97.26125906 | M42: -191.8201007 | N42: 214.2086082 | P42: -318.5741039 | Q42: 107.8493709
A43: 170 | B43: 58.75961235 | C43: 8.682408883 | D43: 59.39761163 | E43: 0.146699997 | F43: 1.433504574 | G43: 0.2745835052 | H43: -1.286804577 | I43: -1.561388082 | J43: 106.2715287 | K43: 90.53905269 | M43: -196.6558594 | N43: 211.8484646 | P43: -323.4098626 | Q43: 105.4892273
A44: 180 | B44: 58 | C44: 6.125742275e-15 | D44: 58 | E44: 1.056162461e-16 | F44: 1.436754743 | G44: 0.2680831667 | H44: -1.436754743 | I44: -1.70483791 | J44: 97.680017 | K44: 82.319983 | M44: -201.3935876 | N44: 209.7539629 | P44: -328.1475908 | Q44: 103.3947256
A45: 190 | B45: 58.75961235 | C45: -8.682408883 | D45: 59.39761163 | E45: -0.146699997 | F45: 1.433504574 | G45: 0.2745835052 | H45: -1.580204571 | I45: -1.854788076 | J45: 89.46094731 | K45: 73.72847133 | M45: -206.0036573 | N45: 207.9894437 | P45: -332.7576605 | Q45: 101.6302064
A46: 200 | B46: 61.01536896 | C46: -17.10100717 | D46: 63.36655029 | E46: -0.273262547 | F46: 1.424266658 | G46: 0.2930593373 | H46: -1.697529205 | I46: -1.990588542 | J46: 82.73874094 | K46: 65.94767777 | M46: -210.4516775 | N46: 206.6319476 | P46: -337.2056807 | Q46: 100.2727102
A47: 210 | B47: 64.69872981 | C47: -25 | D47: =+SQRT(B47^2+C47^2) -> 69.36083649 | E47: =ATAN2(B47,C47) -> -0.3687330673 | F47: 1.410290456 | G47: 0.3210117415 | H47: =+E47-F47 -> -1.779023523 | I47: =+H47-G47 -> -2.100035265 | J47: 78.06946046 | K47: 59.6768425 | M47: -214.6970087 | N47: 205.7728329 | P47: -341.4510119 | Q47: 99.41359558
A48: 220 | B48: 69.69777784 | C48: -32.13938048 | D48: =+SQRT(B48^2+C48^2) -> 76.75102615 | E48: =ATAN2(B48,C48) -> -0.4320667816 | F48: 1.393015635 | G48: 0.3555613844 | H48: =+E48-F48 -> -1.825082416 | I48: =+H48-G48 -> -2.180643801 | J48: 75.43048029 | K48: 55.0583136 | M48: -218.6906561 | N48: 205.5193817 | P48: -345.4446593 | Q48: 99.1601444
A49: 230 | B49: 75.86061952 | C49: -38.30222216 | D49: 84.98172636 | E49: -0.467561973 | F49: 1.373712517 | G49: 0.3941676193 | H49: -1.84127449 | I49: -2.235442109 | J49: 74.50274279 | K49: 51.91860178 | M49: -218.6906561 | N49: 205.5193817 | P49: -345.4446593 | Q49: 99.1601444
A50: 240 | B50: 83 | C50: -43.30127019 | D50: 93.61623791 | E50: -0.4808581337 | F50: 1.353381925 | G50: 0.4348288027 | H50: -1.834240059 | I50: -2.269068862 | J50: 74.905786 | K50: 49.99193079 | M50: -222.3723443 | N50: 205.9961976 | P50: -349.1263475 | Q50: 99.63696027
A51: 250 | B51: 90.89899283 | C51: -46.98463104 | D51: 102.3239095 | E51: -0.477066832 | F51: 1.332786139 | G51: 0.476020375 | H51: -1.809852971 | I51: -2.285873346 | J51: 76.30306321 | K51: 49.02910476 | M51: -225.6665481 | N51: 207.3460402 | P51: -352.4205513 | Q51: 100.9868029
A52: 260 | B52: 99.31759112 | C52: -49.24038765 | D52: 110.8539565 | E52: -0.4602716707 | F52: 1.312510244 | G52: 0.5165721662 | H52: -1.772781914 | I52: -2.289354081 | J52: 78.42707831 | K52: 48.82967337 | M52: -228.4772646 | N52: 209.7294834 | P52: -355.2312678 | Q52: 103.3702461
A53: 270 | B53: 108 | C53: -50 | D53: 119.0126044 | E53: -0.433581484 | F53: 1.293015116 | G53: 0.5555624218 | H53: -1.7265966 | I53: -2.282159022 | J53: 81.07330191 | K53: 49.24191988 | M53: -230.6814177 | N53: 213.322396 | P53: -357.4354208 | Q53: 106.9631587
A54: 280 | B54: 116.6824089 | C54: -49.24038765 | D54: 126.6467541 | E54: -0.3993298695 | F54: 1.274674747 | G54: 0.5922431605 | H54: -1.674004616 | I54: -2.266247777 | J54: 84.08660062 | K54: 50.15356707 | M54: -232.1210793 | N54: 218.3097048 | P54: -358.8750825 | Q54: 111.9504675
A55: 290 | B55: 125.1010072 | C55: -46.98463104 | D55: 133.6331454 | E55: -0.3592734255 | F55: 1.257800307 | G55: 0.6259920395 | H55: -1.617073733 | I55: -2.243065772 | J55: 87.34849997 | K55: 51.48179809 | M55: -232.5953527 | N55: 224.8732436 | P55: -359.3493559 | Q55: 118.5140063
A56: 300 | B56: 133 | C56: -43.30127019 | D56: 139.8713695 | E56: -0.3147504866 | F56: 1.242654815 | G56: 0.6562830241 | H56: -1.557405301 | I56: -2.213688325 | J56: 90.76724924 | K56: 53.16500179 | M56: -231.8540024 | N56: 233.1709246 | P56: -358.6080056 | Q56: 126.8116873
A57: 310 | B57: 140.1393805 | C57: -38.30222216 | D57: 145.2794073 | E57: -0.2667991877 | F57: 1.229461533 | G57: 0.6826695883 | H57: -1.49626072 | I57: -2.178930309 | J57: 94.27057567 | K57: 55.15648946 | M57: -229.5969312 | N57: 243.3045178 | P57: -356.3509344 | Q57: 136.9452805
A58: 320 | B58: 146.3022222 | C58: -32.13938048 | D58: 149.7907874 | E58: -0.2162431556 | F58: 1.218408312 | G58: 0.7047760286 | H58: -1.434651468 | I58: -2.139427497 | J58: 97.80052581 | K58: 57.41983387 | M58: -225.4862303 | N58: 255.2750405 | P58: -352.2402335 | Q58: 148.9158032
A59: 330 | B59: 151.3012702 | C59: -25 | D59: 153.3527775 | E59: -0.1637536745 | F59: 1.209649392 | G59: 0.7222938687 | H59: -1.373403067 | I59: -2.095696936 | J59: 101.3098007 | K59: 59.92541045 | M59: -219.1796186 | N59: 268.9296194 | P59: -345.9336218 | Q59: 162.570382
A60: 340 | B60: 154.984631 | C60: -17.10100717 | D60: 155.9252395 | E60: -0.1098954685 | F60: 1.203305693 | G60: 0.734981268 | H60: -1.313201161 | I60: -2.048182429 | J60: 104.7591158 | K60: 62.64779113 | M60: -210.3927551 | N60: 283.9126005 | P60: -337.1467583 | Q60: 177.5533632
A61: 350 | B61: 157.2403877 | C61: -8.682408883 | D61: 157.4799153 | E61: -0.05516140607 | F61: 1.199464352 | G61: 0.7426639505 | H61: -1.254625758 | I61: -1.997289708 | J61: 108.1152392 | K61: 65.56372926 | M61: -198.9888892 | N61: 299.6444711 | P61: -325.7428924 | Q61: 193.2852337
A62: 360 | B62: 158 | C62: -1.225148455e-14 | D62: 158 | E62: -7.754104145e-17 | F62: 1.19817803 | G62: 0.745236594 | H62: -1.19817803 | I62: -1.943414624 | J62: 111.3494558 | K62: 68.65054421 | M62: -185.0756618 | N62: 315.3566939 | P62: -311.829665 | Q62: 208.9974566
M63: -185.0756618 | N63: 315.3566939 | P63: -311.829665 | Q63: 208.9974566
M64: -169.0681301 | N64: 330.1969394 | P64: -295.8221333 | Q64: 223.8377021
M65: -151.6736625 | N65: 343.3842992 | P65: -278.4276657 | Q65: 237.0250619
M66: -133.7841371 | N66: 354.3577545 | P66: -260.5381403 | Q66: 247.9985172
M67: -116.3110084 | N67: 362.8565594 | P67: -243.0650116 | Q67: 256.4973221
M68: -100.0298296 | N68: 368.9081633 | P68: -226.7838328 | Q68: 262.548926
M69: -85.48756292 | N69: 372.7478707 | P69: -212.2415661 | Q69: 266.3886334
M70: -72.98508359 | N70: 374.7174614 | P70: -199.7390868 | Q70: 268.358224
M71: -62.61350615 | N71: 375.1805626 | P71: -189.3675093 | Q71: 268.8213253
M72: -54.31315145 | N72: 374.469773 | P72: -181.0671546 | Q72: 268.1105356
M73: -47.93168426 | N73: 372.8629582 | P73: -174.6856875 | Q73: 266.5037209
M74: -43.2701385 | N74: 370.5791312 | P74: -170.0241417 | Q74: 264.2198939
M75: -40.11455746 | N75: 367.7845615 | P75: -166.8685607 | Q75: 261.4253242
M76: -38.25539994 | N76: 364.6026655 | P76: -165.0094031 | Q76: 258.2434282
M77: -37.49809694 | N77: 361.1241104 | P77: -164.2521001 | Q77: 254.7648731
M78: -37.66784342 | N78: 357.4155571 | P78: -164.4218466 | Q78: 251.0563197
M79: -38.61093371 | N79: 353.5265935 | P79: -165.3649369 | Q79: 247.1673562
M80: -40.19419051 | N80: 349.4949421 | P80: -166.9481937 | Q80: 243.1357048
M81: -42.30345384 | N81: 345.3502241 | P81: -169.057457 | Q81: 238.9909867
M82: -44.8416962 | N82: 341.1165972 | P82: -171.5956994 | Q82: 234.7573599
M83: -47.72707562 | N83: 336.8145522 | P83: -174.4810788 | Q83: 230.4553148
M84: -50.89108402 | N84: 332.4620941 | P84: -177.6450872 | Q84: 226.1028568
M85: -54.27685919 | N85: 328.0754887 | P85: -181.0308624 | Q85: 221.7162514
M86: -57.83767971 | N86: 323.6697006 | P86: -184.5916829 | Q86: 217.3104632
M87: -61.53563674 | N87: 319.258623 | P87: -188.2896399 | Q87: 212.8993857
M88: -65.34046549 | N88: 314.8551668 | P88: -192.0944687 | Q88: 208.4959295
M89: -69.22851465 | N89: 310.471259 | P89: -195.9825178 | Q89: 204.1120216
M90: -73.18183289 | N90: 306.1177888 | P90: -199.9358361 | Q90: 199.7585515
M91: -77.18735282 | N91: 301.8045261 | P91: -203.941356 | Q91: 195.4452888
M92: -81.23615617 | N92: 297.5400326 | P92: -207.9901594 | Q92: 191.1807952
M93: -85.3228066 | N93: 293.3315792 | P93: -212.0768098 | Q93: 186.9723419
M94: -89.44473946 | N94: 289.1850813 | P94: -216.1987426 | Q94: 182.825844
M95: -93.6017005 | N95: 285.1050573 | P95: -220.3557037 | Q95: 178.7458199
M96: -97.79522733 | N96: 281.094619 | P96: -224.5492305 | Q96: 174.7353817
M97: -102.0281698 | N97: 277.1554961 | P97: -228.782173 | Q97: 170.7962587
M98: -106.3042462 | N98: 273.2880968 | P98: -233.0582494 | Q98: 166.9288595
M99: -110.6276344 | N99: 269.49161 | P99: -237.3816376 | Q99: 163.1323726
M100: -115.0025963 | N100: 265.7641454 | P100: -241.7565995 | Q100: 159.404908
